lending/lending_fUSD_20260310
["ID","MTS","AMOUNT","RATE_DAILY","PERIOD"]
[408086349,1773127831778,-999.99,0.00016387,2]
[408086351,1773127831787,-2054.16,0.00016387,2]
[408086354,1773127831797,-485.33,0.00016389,3]
[408086357,1773127831806,-200.0,0.00016389,2]
[408086359,1773127831816,-151.0,0.00016389,2]
[408086361,1773127831825,-500.0,0.00016389,2]
[408086363,1773127831835,-500.0,0.00016398,2]
[408086365,1773127831844,-1427.38,0.00016398,2]
[408086367,1773127831854,-166.66,0.00016414,2]
[408086369,1773127831864,-500.0,0.00016672,2]
[408086371,1773127831874,-1427.38,0.00016672,2]
[408086373,1773127831883,-4396.21915685,0.00016696,2]
[408086375,1773127831892,-551.0,0.00016712,2]
[408086376,1773127831903,-166.66,0.00016739,2]
[408086377,1773127831913,-5000.0,0.00016898,2]
[408086378,1773127831923,-14640.11110937,0.000169,2]
[408086379,1773127831932,-200.0,0.00016937,2]
[408086380,1773127831942,-500.0,0.00016946,2]
[408086381,1773127831952,-1427.38,0.00016946,2]
[408086382,1773127831963,-199.02,0.00016992,2]
[408086383,1773127831973,-75260.26760101,0.00017,2]
[408086384,1773127831982,-504.0,0.00017,2]
[408086385,1773127831991,-4650.62188492,0.00017039,2]
[408086386,1773127832001,-166.66,0.00017064,2]
[408086387,1773127832011,-1680.0,0.00017087,2]
[408086388,1773127832020,-4396.21915685,0.00017093,2]
[408086389,1773127832029,-500.0,0.0001722,2]
[408086390,1773127832039,-1427.38,0.0001722,2]
[408086391,1773127832048,-14640.11110933,0.0001723,2]
[408086392,1773127832060,-296.83,0.00017233,2]
[408086393,1773127832071,-334.97,0.00017245,2]
[408086394,1773127832081,-500.0,0.00017249,2]
[408086395,1773127832090,-500.0,0.00017249,2]
[408086396,1773127832100,-217.49,0.0001725,2]
[408086397,1773127832110,-3027.76,0.0001725,2]
[408086398,1773127832119,-936.92,0.0001725,2]
[408086399,1773127832129,-500.0,0.00017373,2]
[408086400,1773127832142,-773.0,0.00017429,2]
[408086401,1773127832152,-500.0,0.00017452,2]
[408086402,1773127832162,-200.0,0.00017485,2]
[408086403,1773127832172,-4396.21915685,0.0001749,2]
[408086404,1773127832182,-500.0,0.00017494,2]
[408086405,1773127832192,-1427.38,0.00017494,2]
[408086406,1773127832579,-14640.11110933,0.0001756,2]
[408086407,1773127832589,-500.0,0.00017768,2]
[408086408,1773127832600,-1427.38,0.00017768,2]
[408086409,1773127832609,-1600.0,0.00017782,2]
[408086410,1773127832619,-1000.0,0.00017862,2]
[408086411,1773127832629,-606.41801228,0.00017862,2]
[408086412,1773127832638,-174.61919141,0.00017862,2]
[408086413,1773127832647,-500.0,0.00017862,2]
[408086414,1773127832657,-200.0,0.00017862,2]
[408086415,1773127832666,-262.90206542,0.00017862,2]
[408086416,1773127832676,-166.66,0.00017878,2]
[408086417,1773127832686,-4396.21915685,0.00017887,2]
[408086418,1773127832697,-500.0,0.0001789,2]
[408086419,1773127832707,-14640.11110933,0.00017891,2]
[408086420,1773127832718,-2000.0,0.00017927,2]
[408086421,1773127832730,-50.071363,0.00018033,2]
[408086422,1773127832745,-149.928637,0.00018033,2]
[408086423,1773127832758,-471.62,0.00018036,2]
[408086424,1773127832768,-500.0,0.00018042,2]
[408086425,1773127832778,-1427.38,0.00018042,2]
[408086426,1773127832789,-936.92,0.00018112,2]
[408086427,1773127832798,-9728.39527393,0.00018219,2]
[408086428,1773127832807,-3516.95880932,0.00018219,2]
[408086429,1773127832819,-1483.04119068,0.00018219,2]
[408086430,1773127832828,-5000.0,0.00018219,2]
[408086431,1773127832837,-2175.62512602,0.00018221,2]
[408086432,1773127832862,-500.0,0.00017038,2]
[408086433,1773127832873,-500.0,0.00017038,2]
[408086434,1773127832882,-7193.81599967,0.00018221,2]
[408086439,1773127840099,-500.0,0.00017038,2]
[408086440,1773127840109,-106.81999954,0.00017038,2]
[408086441,1773127840148,-397.29938992,0.00017038,2]
[408086442,1773127840158,-500.0,0.00017038,2]
[408086443,1773127840169,-500.0,0.00017038,2]
[408086444,1773127840179,-500.0,0.00017038,2]
[408086446,1773127840189,-500.0,0.00017038,2]
[408086447,1773127840200,-500.0,0.00017038,2]
[408086448,1773127840209,-500.0,0.00017038,2]
[408086449,1773127840218,-500.0,0.00017038,2]
[408086450,1773127840227,-448.93730077,0.00017038,2]
[408086451,1773127840238,-500.0,0.00017038,2]
[408086452,1773127840253,-500.0,0.00017038,2]
[408086453,1773127840265,-500.0,0.00017038,2]
[408086454,1773127840276,-500.0,0.00017038,2]
[408086455,1773127840286,-500.0,0.00017038,2]
[408086456,1773127840296,-500.0,0.00017038,2]
[408086457,1773127840306,-500.0,0.00017038,2]
[408086458,1773127840315,-500.0,0.00017038,2]
[408086459,1773127840325,-500.0,0.00017038,2]
[408086460,1773127840335,-500.0,0.00017038,2]
[408086461,1773127840345,-500.0,0.00017038,2]
[408086462,1773127840355,-500.0,0.00017038,2]
[408086463,1773127840364,-500.0,0.00017038,2]
[408086464,1773127840375,-500.0,0.00017038,2]
[408086465,1773127840384,-500.0,0.00017038,2]
[408086466,1773127840393,-500.0,0.00017038,2]
[408086467,1773127840403,-411.23504914,0.00017038,2]
[408086468,1773127840412,-500.0,0.00017038,2]
[408086469,1773127840422,-2489.70957532,0.00018119,2]
[408086470,1773127840431,-5270.66998364,0.00018221,2]
[408086471,1773127840442,-595.171026,0.00018246,2]
[408086472,1773127840451,-4396.21915685,0.00018284,2]
[408086473,1773127840461,-500.0,0.00018316,2]
[408086474,1773127840470,-1427.38,0.00018316,2]
[408086475,1773127840480,-500.0,0.00018325,7]
[408086476,1773127840490,-700.0,0.00018325,7]
[408086477,1773127840500,-500.0,0.00018325,7]
[408086478,1773127840509,-24246.02,0.00018356,2]
[408086479,1773127840520,-1000.0,0.0001841,2]
[408086480,1773127840531,-200.0,0.0001841,2]
[408086481,1773127840540,-181.08010149,0.0001841,2]
[408086482,1773127840550,-211.23840358,0.0001841,2]
[408086483,1773127840559,-166.66,0.00018469,2]
[408086484,1773127840569,-500.0,0.00018476,2]
[408086485,1773127840579,-175.79749323,0.00018476,2]
[408086487,1773127840589,-4831.12608538,0.00018534,3]
[408086489,1773127840598,-14640.11110933,0.00018551,2]
[408086490,1773127840608,-200.0,0.00018581,2]
[408086492,1773127840618,-500.0,0.0001859,2]
[408086494,1773127840627,-1427.38,0.0001859,2]
[408086495,1773127840637,-4396.21915685,0.00018681,2]
[408086496,1773127840647,-500.0,0.00018783,2]
[408086497,1773127840656,-2323.0,0.00018785,2]
[408086498,1773127840666,-481.41,0.00018836,2]
[408086499,1773127840684,-481.42,0.00018836,2]
[408086500,1773127840693,-481.42455123,0.00018836,2]
[408086501,1773127840703,-500.0,0.00018838,2]
[408086502,1773127840713,-504.0,0.00018853,3]
[408086504,1773127840722,-500.0,0.00018864,2]
[408086505,1773127840731,-1427.38,0.00018864,2]
[408086506,1773127840741,-14640.11110933,0.00018881,2]
[408086507,1773127840750,-246.68097798,0.00018893,2]
[408086508,1773127840759,-200.0,0.000189,6]
[408086509,1773127840769,-1000.0,0.00018958,2]
[408086510,1773127840778,-200.0,0.00018958,2]
[408086511,1773127840788,-187.78006525,0.00018958,2]
[408086512,1773127840797,-1255.496,0.00018973,2]
[408086513,1773127840807,-936.92,0.00018975,2]
[408086514,1773127840816,-172.91703981,0.00018983,2]
[408086515,1773127840826,-160.0,0.00018983,2]
[408086516,1773127840847,-162.14798,0.0001899,2]
[408086517,1773127840869,-162.14799,0.0001899,2]
[408086518,1773127840880,-166.66,0.00019059,2]
[408086519,1773127840889,-4396.21915685,0.00019078,2]
[408086520,1773127840899,-3055.6398,0.00019078,2]
[408086521,1773127840908,-507.5170851,0.00019099,2]
[408086522,1773127840918,-514.49695934,0.00019099,2]
[408086523,1773127840927,-510.39088339,0.00019099,2]
[408086524,1773127840936,-505.20544332,0.00019099,2]
[408086525,1773127840946,-517.45397001,0.00019099,2]
[408086526,1773127840959,-157.60729089,0.00019099,2]
[408086527,1773127840968,-151.0,0.00019099,2]
[408086528,1773127840978,-224.19597423,0.00019099,2]
[408086529,1773127840987,-151.0,0.00019099,2]
[408086530,1773127840996,-151.0,0.00019099,2]
[408086531,1773127841005,-151.0,0.00019099,2]
[408086532,1773127841015,-151.0,0.00019099,2]
[408086533,1773127841024,-151.0,0.00019099,2]
[408086534,1773127841034,-173.89507854,0.00019099,2]
[408086535,1773127841044,-152.0,0.00019099,2]
[408086536,1773127841054,-1481.98,0.00019106,2]
[408086537,1773127841064,-151.0,0.00019128,2]
[408086539,1773127841073,-508.33884577,0.00019128,2]
[408086540,1773127841083,-200.0,0.00019129,2]
[408086541,1773127841092,-25059.83,0.00019137,8]
[408086542,1773127841101,-150.11,0.00019137,8]
[408086543,1773127841113,-500.0,0.00019138,2]
[408086544,1773127841123,-1427.38,0.00019138,2]
[408086545,1773127841132,-221.0,0.00019145,2]
[408086546,1773127841141,-1288.8888652,0.00019178,2]
[408086547,1773127841150,-53343.29693666,0.00019178,2]
[408086548,1773127841163,-1412.62,0.00019178,2]
[408086549,1773127841181,-651.2,0.00019178,2]
[408086550,1773127841195,-1124.58531348,0.00019178,2]
[408086551,1773127841218,-24776.61033856,0.00019178,2]
[408086552,1773127841229,-200.0,0.00019178,2]
[408086553,1773127841239,-151.0,0.00019178,2]
[408086554,1773127841248,-270.22482698,0.00019178,2]
[408086555,1773127841257,-387.35941905,0.00019178,2]
[408086556,1773127841271,-160732.410681,0.00019178,2]
[408086557,1773127841280,-162.14799,0.00019178,2]
[408086558,1773127841289,-162.14798,0.00019178,2]
[408086559,1773127841299,-162.14799,0.00019178,2]
[408086560,1773127841310,-162.14799,0.00019178,2]
[408086561,1773127841319,-889.1271344,0.00019178,2]
[408086562,1773127841329,-3523.0133134,0.00019178,2]
[408086563,1773127841339,-151.0,0.00019178,2]
[408086564,1773127841350,-151.0,0.00019178,2]
[408086565,1773127841359,-227.59485,0.00019178,2]
[408086566,1773127841372,-963.696153,0.00019178,2]
[408086567,1773127841383,-963.696153,0.00019178,2]
[408086568,1773127841393,-963.696153,0.00019178,2]
[408086569,1773127841403,-151.0,0.00019178,2]
[408086570,1773127841412,-963.696153,0.00019178,2]
[408086571,1773127841422,-163.203635,0.00019178,2]
[408086572,1773127841432,-151.0,0.00019178,2]
[408086573,1773127841442,-151.0,0.00019178,2]
[408086574,1773127841452,-151.0,0.00019178,2]
[408086575,1773127841462,-423.450382,0.00019178,2]
[408086576,1773127841471,-151.0,0.00019178,2]
[408086577,1773127841481,-151.0,0.00019178,2]
[408086578,1773127841491,-423.450382,0.00019178,2]
[408086579,1773127841501,-151.0,0.00019178,2]
[408086580,1773127841511,-423.450382,0.00019178,2]
[408086581,1773127841522,-423.450382,0.00019178,2]
[408086582,1773127841532,-278.687678,0.00019178,2]
[408086583,1773127841542,-278.687678,0.00019178,2]
[408086584,1773127841553,-278.687678,0.00019178,2]
[408086585,1773127841564,-151.0,0.00019178,2]
[408086586,1773127841575,-278.687678,0.00019178,2]
[408086587,1773127841584,-151.0,0.00019178,2]
[408086588,1773127841594,-151.0,0.00019178,2]
[408086589,1773127841603,-787.0,0.00019178,2]
[408086590,1773127841612,-250.0,0.00019178,2]
[408086591,1773127841622,-168.0,0.00019192,2]
[408086592,1773127841632,-2000.0,0.000192,2]
[408086593,1773127841645,-14640.11110933,0.00019212,2]
[408086594,1773127841655,-500.0,0.00019231,2]
[408086595,1773127841668,-1000.0,0.00019262,2]
[408086596,1773127841677,-598.0,0.00019266,2]
[408086597,1773127841686,-221.911124,0.00019282,2]
[408086598,1773127841696,-159.99163251,0.00019288,2]
[408086599,1773127841706,-199.02,0.00019309,2]
[408086600,1773127841715,-500.0,0.00019313,2]
[408086601,1773127841724,-2009.56284127,0.00019313,2]
[408086602,1773127841733,-500.0,0.00019342,2]
[408086603,1773127841743,-500.0,0.00019362,2]
[408086604,1773127841751,-500.0,0.00019362,2]
[408086605,1773127841761,-500.0,0.00019362,2]
[408086606,1773127841772,-500.0,0.00019362,2]
[408086607,1773127841781,-502.14275911,0.00019362,2]
[408086608,1773127841791,-564.0,0.00019364,2]
[408086609,1773127841800,-150.0,0.00019364,2]
[408086610,1773127841809,-150.0,0.00019364,2]
[408086611,1773127841818,-150.0,0.00019364,2]
[408086612,1773127841827,-150.0,0.00019364,2]
[408086613,1773127841836,-152.0,0.00019368,5]
[408086614,1773127841845,-441.0,0.0001937,2]
[408086615,1773127841854,-159.99163251,0.0001937,2]
[408086616,1773127841864,-200.0,0.0001937,2]
[408086617,1773127841873,-741.0,0.00019379,2]
[408086618,1773127841883,-334.97,0.00019383,2]
[408086619,1773127841892,-168.0,0.0001939,2]
[408086620,1773127841901,-500.0,0.00019412,2]
[408086621,1773127841910,-1427.38,0.00019412,2]
[408086622,1773127841920,-500.0,0.00019421,7]
[408086623,1773127841929,-700.0,0.00019421,7]
[408086624,1773127841938,-500.0,0.00019421,7]
[408086625,1773127841953,-159.99163252,0.00019425,2]
[408086626,1773127841966,-168.0,0.00019459,2]
[408086627,1773127841975,-6240.0,0.00019463,7]
[408086628,1773127841985,-4396.21915685,0.00019475,2]
[408086629,1773127841994,-159.99163251,0.00019479,2]
[408086630,1773127842005,-155.0,0.00019485,2]
[408086631,1773127842016,-388.21,0.00019491,2]
[408086632,1773127842026,-571.14105569,0.00019499,2]
[408086633,1773127842036,-3000.0,0.000195,2]
[408086634,1773127842047,-304.0,0.000195,2]
[408086635,1773127842057,-400.0,0.000195,7]
[408086636,1773127842068,-994.0,0.000195,2]
[408086637,1773127842079,-311.0,0.000195,2]
[408086638,1773127842089,-1000.0,0.00019506,2]
[408086639,1773127842099,-200.0,0.00019506,2]
[408086640,1773127842108,-194.72792766,0.00019506,2]
[408086641,1773127842117,-14640.11110933,0.00019542,2]
[408086642,1773127842128,-187.0,0.00019548,2]
[408086643,1773127842138,-159.99163251,0.00019562,2]
[408086644,1773127842147,-200.0,0.00019563,2]
[408086645,1773127842157,-891.28098928,0.0001957,2]
[408086646,1773127842166,-296.0,0.00019591,2]
[408086647,1773127842175,-187.0,0.00019592,2]
[408086648,1773127842184,-481.42,0.00019598,2]
[408086649,1773127842194,-3073.0,0.000196,2]
[408086650,1773127842203,-1510.547347,0.000196,2]
[408086651,1773127842212,-600.0,0.000196,7]
[408086652,1773127842222,-500.0,0.00019606,2]
[408086653,1773127842231,-187.0,0.0001962,2]
[408086654,1773127842240,-922.0,0.00019622,2]
[408086655,1773127842249,-1213.0,0.00019622,2]
[408086657,1773127842258,-619.0,0.00019622,2]
[408086659,1773127842273,-920.557,0.00019622,2]
[408086660,1773127842282,-199.02,0.00019634,2]
[408086661,1773127842292,-334.97,0.00019637,2]
[408086662,1773127842301,-159.99163251,0.00019644,2]
[408086663,1773127842312,-166.66,0.00019649,2]
[408086664,1773127842321,-916.547153,0.00019665,7]
[408086665,1773127842330,-236.0,0.00019669,2]
[408086666,1773127842342,-200.0,0.00019677,2]
[408086668,1773127842352,-2834.0,0.0001968,2]
[408086670,1773127842361,-1427.38,0.00019685,2]
[408086672,1773127842370,-500.0,0.00019685,2]
[408086674,1773127842380,-500.0,0.00019693,2]
[408086675,1773127842389,-150.0,0.00019693,2]
[408086677,1773127842398,-150.0,0.00019693,2]
[408086679,1773127842407,-150.0,0.00019693,2]
[408086681,1773127842417,-150.0,0.00019693,2]
[408086683,1773127842427,-500.0,0.00019699,2]
[408086685,1773127842437,-500.0,0.00019699,2]
[408086687,1773127842446,-3000.0,0.000197,2]
[408086689,1773127842456,-800.0,0.000197,7]
[408086691,1773127842465,-913.201404,0.000197,2]
[408086693,1773127842475,-913.201404,0.000197,2]
[408086695,1773127842484,-151.0,0.000197,2]
[408086697,1773127842494,-913.201404,0.000197,2]
[408086699,1773127842504,-151.0,0.000197,2]
[408086702,1773127842517,-228.371361,0.000197,2]
[408086704,1773127842528,-913.201404,0.000197,2]
[408086706,1773127842537,-228.371361,0.000197,2]
[408086708,1773127842547,-995.518115,0.000197,2]
[408086710,1773127842557,-228.371361,0.000197,2]
[408086712,1773127842568,-151.0,0.000197,2]
[408086713,1773127842578,-995.518115,0.000197,2]
[408086715,1773127842588,-228.371361,0.000197,2]
[408086716,1773127842599,-995.518115,0.000197,2]
[408086717,1773127842608,-995.518115,0.000197,2]
[408086718,1773127842617,-432.626205,0.000197,2]
[408086719,1773127842627,-1308.367659,0.000197,2]
[408086720,1773127842636,-1308.367659,0.000197,2]
[408086721,1773127842645,-1308.367659,0.000197,2]
[408086722,1773127842654,-1308.367659,0.000197,2]
[408086724,1773127842665,-159.195226,0.000197,2]
[408086726,1773127842674,-151.0,0.000197,2]
[408086728,1773127842683,-151.0,0.000197,2]
[408086729,1773127842692,-151.0,0.000197,2]
[408086731,1773127842701,-151.0,0.000197,2]
[408086732,1773127842711,-218.0,0.00019702,2]
[408086733,1773127842720,-688.09,0.00019711,2]
[408086734,1773127842729,-787.0,0.00019726,2]
[408086735,1773127842739,-159.99163251,0.00019753,2]
[408086736,1773127842749,-1600.0,0.00019758,2]
[408086737,1773127842758,-200.0,0.00019759,2]
[408086738,1773127842767,-500.0,0.0001976,2]
[408086739,1773127842776,-500.0,0.0001976,2]
[408086740,1773127842786,-500.0,0.00019761,2]
[408086741,1773127842795,-514.89612966,0.00019761,2]
[408086742,1773127842804,-500.0,0.00019761,2]
[408086743,1773127842813,-500.0,0.00019761,2]
[408086744,1773127842822,-507.77819291,0.00019761,2]
[408086745,1773127842831,-500.0,0.00019761,2]
[408086746,1773127842840,-507.27777235,0.00019761,2]
[408086747,1773127842850,-500.0,0.00019761,2]
[408086748,1773127842859,-514.78454423,0.00019761,2]
[408086749,1773127842868,-501.77338633,0.00019761,2]
[408086750,1773127842877,-315.63,0.00019761,2]
[408086751,1773127842887,-500.0,0.00019761,2]
[408086752,1773127842899,-511.40789189,0.00019761,2]
[408086753,1773127842909,-500.0,0.00019761,2]
[408086754,1773127842918,-500.0,0.00019761,2]
[408086755,1773127842928,-500.0,0.00019761,2]
[408086756,1773127842938,-500.0,0.00019761,2]
[408086757,1773127842947,-500.0,0.00019761,2]
[408086758,1773127842957,-500.0,0.00019761,2]
[408086759,1773127842966,-500.0,0.00019761,2]
[408086760,1773127842976,-500.0,0.00019761,2]
[408086761,1773127842985,-500.0,0.00019761,2]
[408086762,1773127843308,-519.79032299,0.00019761,2]
[408086763,1773127843319,-500.0,0.00019761,2]
[408086764,1773127843328,-500.0,0.00019761,2]
[408086765,1773127843339,-500.0,0.00019761,2]
[408086766,1773127843348,-500.0,0.00019761,2]
[408086767,1773127843356,-45.20030778,0.00019778,2]
[408086768,1773127843394,-454.79969222,0.00019778,2]
[408086769,1773127843403,-500.0,0.00019778,2]
[408086770,1773127843412,-500.0,0.00019778,2]
[408086771,1773127843421,-236.0,0.00019798,2]
[408086772,1773127843430,-608.30030778,0.000198,2]
[408086773,1773127843547,-414.0,0.00019447,2]
[408086774,1773127843555,-64.88969222,0.000198,2]
[408086775,1773127843564,-158.26612637,0.000198,2]
[408086778,1773127845765,-257.6742486,0.00018369,2]
[408086780,1773127845775,-1071.18168082,0.00018369,2]
[408086783,1773127845794,-1160.85364587,0.00018369,2]
[408086784,1773127845803,-4000.0,0.0001891,2]
[408086785,1773127845813,-4000.0,0.00019383,2]
[408086786,1773127845822,-3638.11780663,0.000198,2]
[408086787,1773127845831,-1000.0,0.000198,7]
[408086788,1773127845840,-151.0,0.000198,2]
[408086789,1773127845849,-151.0,0.000198,2]
[408086791,1773127845858,-270.4493572,0.000198,2]
[408086793,1773127845869,-48.3046188,0.000198,2]
[408086795,1773127845878,-151.0,0.000198,2]
[408086797,1773127845887,-126.27553551,0.000198,2]
[408086799,1773127941987,1345.22,0.00013067,2]
[408086822,1773128997423,-210.0,0.00015068,2]
[408086823,1773128997450,-738.556563,0.00015311,7]
[408086824,1773128997477,-153.09936437,0.0001576,2]
[408086825,1773128997505,-1762.27514874,0.0001576,2]
[408086826,1773128997533,-1200.0,0.00015805,2]
[408086827,1773128997562,-282.0,0.00015806,2]
[408086828,1773128997589,-704.96,0.00015806,2]
[408086829,1773128997617,-1500.0,0.00015806,2]
[408086830,1773128997647,-326.47,0.00015806,2]
[408086831,1773128997674,-150.0,0.00015806,2]
[408086832,1773128997702,-300.0,0.00015833,2]
[408086833,1773128997730,-200.0,0.00015834,2]
[408086834,1773128997757,-500.0,0.00015834,2]
[408086835,1773128997784,-500.0,0.00015834,2]
[408086836,1773128997819,-500.0,0.00015834,2]
[408086837,1773128997847,-151.50524412,0.00015834,2]
[408086838,1773128997875,-151.0,0.00015834,2]
[408086839,1773128997903,-500.0,0.00015834,2]
[408086840,1773128997932,-151.0,0.00015834,2]
[408086841,1773128997952,-210.0,0.00015834,2]
[408086842,1773128997963,-290.0,0.00015834,2]
[408086843,1773128997973,-151.0,0.00015834,2]
[408086844,1773128997982,-297.556563,0.00015834,2]
[408086845,1773128997993,-153.09936437,0.00015834,2]
[408086846,1773128998008,-49.34407263,0.00015834,2]
[408086847,1773128998017,-500.0,0.00015834,2]
[408086848,1773128998026,-151.0,0.00015834,2]
[408086849,1773128998036,-500.0,0.00015834,2]
[408086850,1773128998045,-151.0,0.00015834,2]
[408086851,1773128998054,-410.93107611,0.00015834,2]
[408086852,1773128998216,-89.06892389,0.00015834,2]
[408086853,1773128998225,-151.0,0.00015834,2]
[408086854,1773128998235,-500.0,0.00015834,2]
[408086855,1773128998245,-151.0,0.00015834,2]
[408086856,1773128998253,-308.93107611,0.00015834,2]
[408086857,1773128998271,-191.06892389,0.00015834,2]
[408086858,1773128998280,-90.93107611,0.00015834,2]
[408086859,1773128998292,-60.06892389,0.00015834,2]
[408086860,1773128998301,-500.0,0.00015834,2]
[408086861,1773128998310,-144.89107611,0.00015834,2]
[408086862,1773128998320,-6.10892389,0.00015834,2]
[408086863,1773128998329,-151.0,0.00015834,2]
[408086864,1773128998339,-500.0,0.00015834,2]
[408086865,1773128998348,-151.0,0.00015834,2]
[408086866,1773128998358,-151.0,0.00015834,2]
[408086867,1773128998367,-151.0,0.00015834,2]
[408086868,1773128998377,-151.0,0.00015834,2]
[408086869,1773128998386,-151.0,0.00015834,2]
[408086870,1773128998395,-87.89107611,0.00015834,2]
[408086871,1773128998406,-63.10892389,0.00015834,2]
[408086872,1773128998415,-154.10952011,0.00015834,2]
[408086873,1773128998424,-109.251556,0.00015834,2]
[408086874,1773128998435,-41.748444,0.00015834,2]
[408086875,1773128998445,-108.251556,0.00015838,7]
[408086876,1773128998457,-143.347788,0.00015838,7]
[408086877,1773128998466,-156.652212,0.00015842,2]
[408086878,1773128998477,-200.0,0.00015842,2]
[408086879,1773128998490,-143.347788,0.00015842,2]
[408086880,1773128998500,-272.10414453,0.00015843,2]
[408086881,1773128998509,-84.54806747,0.00015843,2]
[408086882,1773128998526,-415.45193253,0.00015843,2]
[408086883,1773128998535,-84.54806747,0.00015843,2]
[408086884,1773128998546,-415.45193253,0.00015843,2]
[408086885,1773128998556,-84.54806747,0.00015843,2]
[408086886,1773128998571,-151.50524412,0.00015843,2]
[408086887,1773128998583,-151.0,0.00015843,2]
[408086888,1773128998597,-112.94668841,0.00015843,2]
[408086889,1773128998607,-387.05331159,0.00015843,2]
[408086890,1773128998619,-112.94668841,0.00015843,2]
[408086891,1773128998628,-38.05331159,0.00015843,2]
[408086892,1773128998639,-38.26735954,0.00015843,2]
[408086894,1773129013306,-423.67932887,0.00015843,2]
[408086895,1773129013337,-641.12350491,0.00015843,2]
[408086896,1773129013364,-300.0,0.00015843,2]
[408086897,1773129013390,-217.0,0.00015843,2]
[408086898,1773129013418,-1200.0,0.00015843,2]
[408086899,1773129013438,-423.67932887,0.00015844,2]
[408086900,1773129013454,-641.12350491,0.00015844,2]
[408086901,1773129013474,-300.0,0.00015844,2]
[408086902,1773129013490,-217.0,0.00015844,2]
[408086903,1773129013511,-1200.0,0.00015844,2]
[408086904,1773129013529,-14436.39433244,0.00015844,2]
[408086905,1773129025385,-20000.0,0.00015844,2]
[408086909,1773129031516,-573.43063925,0.00015844,2]
[408086910,1773129031528,-499.50294632,0.00015844,2]
[408086911,1773129031566,-3134.79972123,0.00015844,2]
[408086912,1773129031577,-1654.16230715,0.00015844,2]
[408086913,1773129031619,-510.0,0.00015844,2]
[408086914,1773129031673,-2272.0,0.00015844,2]
[408086915,1773129031684,-284.40875429,0.00015844,2]
[408086916,1773129031697,-2456.22665998,0.00015844,2]
[408086917,1773129031735,-121616.01641587,0.00015844,2]
[408086918,1773129031746,-537.57692983,0.00015844,2]
[408086920,1773129037668,-11760.25759445,0.00015844,2]
[408086921,1773129037681,-718.06097248,0.00015844,2]
[408086922,1773129037950,-1086.4395005,0.00015844,2]
[408086923,1773129037965,-750.97674804,0.00015844,2]
[408086928,1773129039892,-394.89,0.00015844,2]
[408086929,1773129040198,-506.93,0.00015844,2]
[408086930,1773129040210,-14415.99114439,0.00015844,2]
[408086931,1773129040220,-200.0,0.00016382,2]
[408086932,1773129040229,-500.0,0.00016398,2]
[408086933,1773129040239,-507.77819291,0.00016398,2]
[408086934,1773129040248,-500.0,0.00016398,2]
[408086935,1773129040258,-500.0,0.00016398,2]
[408086936,1773129040267,-501.77338633,0.00016398,2]
[408086937,1773129040277,-500.0,0.00016398,2]
[408086938,1773129040287,-500.0,0.00016398,2]
[408086939,1773129040296,-500.0,0.00016398,2]
[408086940,1773129040305,-500.0,0.00016398,2]
[408086941,1773129040314,-502.14275911,0.00016398,2]
[408086942,1773129040323,-500.0,0.00016398,2]
[408086943,1773129040333,-500.0,0.00016398,2]
[408086944,1773129040344,-152.0,0.00016437,3]